bitfinex-derivatives/quotes_BTCF0:USTF0_20241122
["timestamp","ask_amount","ask_price","bid_price","bid_amount"]
[1732269372185,0.0506,98720.0,98712.0,0.3608]
[1732269372186,0.0506,98720.0,98719.0,0.0506]
[1732269372886,0.050601,98718.0,98717.0,0.050601]
[1732269375780,0.3608,98718.0,98707.0,0.0102]
[1732269375980,0.3608,98718.0,98704.0,0.41446036]
[1732269375981,0.050606,98709.0,98704.0,0.36132]
[1732269376189,0.0308,98708.0,98704.0,0.08704]
[1732269376482,0.0308,98708.0,98696.0,0.050612]
[1732269376483,0.050608,98704.0,98696.0,0.050612]
[1732269376682,0.050608,98704.0,98698.0,0.08704]
[1732269376879,0.050608,98704.0,98703.0,0.05212777]
[1732269377279,0.0651,98707.0,98703.0,0.00151977]
[1732269377480,0.050607,98705.0,98703.0,0.00151977]
[1732269377788,0.050607,98705.0,98704.0,0.050608]
[1732269378285,0.0651,98707.0,98705.0,0.050607]
[1732269378480,0.0651,98707.0,98706.0,0.050607]
[1732269378784,0.0308,98708.0,98707.0,0.050606]
[1732269382888,0.081406,98708.0,98707.0,0.050606]
[1732269383084,0.0308,98708.0,98707.0,0.050606]
[1732269385082,0.001,98718.0,98713.0,0.050603]
[1732269385380,0.16171813,98723.0,98722.0,0.050599]
[1732269385584,0.0331,98723.0,98722.0,0.050599]
[1732269385783,0.083698,98723.0,98722.0,0.050599]
[1732269386692,0.0331,98723.0,98722.0,0.050599]
[1732269387390,0.083698,98723.0,98722.0,0.050599]
[1732269387989,0.0331,98723.0,98712.0,0.08704]
[1732269388287,0.16171813,98723.0,98712.0,0.08704]
[1732269388482,0.050601,98718.0,98717.0,0.050601]
[1732269389278,0.0331,98723.0,98717.0,0.050601]
[1732269389486,0.0331,98723.0,98722.0,0.050599]
[1732269390491,0.050599,98722.0,98718.0,0.050601]
[1732269390691,0.3608,98720.0,98713.0,0.050603]
[1732269391077,0.3608,98720.0,98708.0,0.08704]
[1732269391277,0.3608,98720.0,98703.0,0.36283977]
[1732269391482,0.3608,98720.0,98710.0,0.050605]
[1732269391483,0.050602,98715.0,98710.0,0.050605]
[1732269392182,0.3608,98720.0,98710.0,0.050605]
[1732269392383,0.050603,98713.0,98710.0,0.050605]
[1732269392987,0.050603,98713.0,98711.0,0.050604]
[1732269393991,0.050603,98713.0,98712.0,0.050604]
[1732269394383,0.050605,98710.0,98708.0,0.050606]
[1732269394578,0.3608,98720.0,98703.0,0.36283977]
[1732269394792,0.0331,98723.0,98722.0,0.050599]
[1732269399988,0.0497317,98728.0,98722.0,0.050599]
[1732269400292,0.12861813,98730.0,98724.0,0.050598]
[1732269401601,0.1780774,98730.0,98724.0,0.050598]
[1732269405296,0.04945927,98730.0,98729.0,0.050595]
[1732269405604,0.0324,98733.0,98732.0,0.050594]
[1732269406594,0.08207081,98733.0,98732.0,0.050594]
[1732269409106,0.10230331,98733.0,98732.0,0.050594]
[1732269415201,0.06990331,98733.0,98732.0,0.050594]
[1732269415495,0.0202325,98733.0,98732.0,0.050594]
[1732269418697,0.0708255,98733.0,98732.0,0.050594]
[1732269418897,0.0202325,98733.0,98732.0,0.050594]
[1732269419100,0.050596,98728.0,98726.0,0.050596]
[1732269419597,0.0839254,98732.0,98728.0,0.050596]
[1732269419802,0.0202325,98733.0,98728.0,0.050596]
[1732269420004,0.050594,98732.0,98728.0,0.050596]
[1732269420203,0.050594,98732.0,98729.0,0.050595]
[1732269420397,0.050594,98731.0,98729.0,0.050595]
[1732269422502,0.0202325,98733.0,98722.0,0.3608]
[1732269422703,0.0839254,98732.0,98722.0,0.3608]
[1732269422898,0.3608,98729.0,98722.0,0.3608]
[1732269423099,0.050601,98718.0,98716.0,0.050602]
[1732269423399,0.050601,98717.0,98713.0,0.050603]
[1732269423599,0.081801,98717.0,98712.0,0.050604]
[1732269423797,0.081801,98717.0,98709.0,0.36132]
[1732269424106,0.050602,98716.0,98714.0,0.050602]
[1732269424304,0.0312,98717.0,98713.0,0.050603]
[1732269424498,0.0312,98717.0,98714.0,0.050603]
[1732269425097,0.0312,98717.0,98710.0,0.050605]
[1732269425300,0.0312,98717.0,98709.0,0.3608]
[1732269426001,0.0312,98717.0,98715.0,0.050602]
[1732269426699,0.0312,98717.0,98701.0,0.05022793]
[1732269426700,0.050602,98716.0,98714.0,0.050603]
[1732269426895,0.0312,98717.0,98714.0,0.050603]
[1732269427091,0.08172775,98717.0,98714.0,0.050603]
[1732269427304,0.0312,98717.0,98714.0,0.050603]
[1732269427607,0.0312,98717.0,98715.0,0.050602]
[1732269430610,0.0312,98717.0,98705.0,0.3608]
[1732269430611,0.050603,98714.0,98705.0,0.3608]
[1732269430908,0.08230446,98717.0,98713.0,0.050603]
[1732269431105,0.0312,98717.0,98714.0,0.050603]
[1732269431408,0.050603,98713.0,98711.0,0.050604]
[1732269431614,0.0312,98717.0,98712.0,0.050604]
[1732269431615,0.081801,98717.0,98712.0,0.050604]
[1732269432108,0.0312,98717.0,98712.0,0.050604]
[1732269432303,0.050602,98715.0,98712.0,0.050604]
[1732269433609,0.0312,98717.0,98705.0,0.3608]
[1732269433806,0.08085395,98717.0,98705.0,0.3608]
[1732269434010,0.08085395,98717.0,98713.0,0.050603]
[1732269434206,0.08085395,98717.0,98705.0,0.3608]
[1732269434411,0.08085395,98717.0,98715.0,0.050602]
[1732269435702,0.08085395,98717.0,98705.0,0.3608]
[1732269436011,0.050602,98715.0,98706.0,0.050607]
[1732269436306,0.050602,98715.0,98705.0,0.3608]
[1732269436502,0.08085395,98717.0,98705.0,0.3608]
[1732269436908,0.0839254,98715.0,98705.0,0.3608]
[1732269437207,0.050603,98713.0,98705.0,0.3608]
[1732269437411,0.2184538,98715.0,98705.0,0.3608]
[1732269437614,0.2184538,98715.0,98710.0,0.050605]
[1732269437802,0.08085395,98717.0,98700.0,0.05967689]
[1732269438113,0.050606,98708.0,98705.0,0.050607]
[1732269438606,0.050606,98708.0,98706.0,0.050607]
[1732269439207,0.050604,98712.0,98700.0,0.04947689]
[1732269439412,0.1678508,98713.0,98700.0,0.04947689]
[1732269439413,0.050605,98709.0,98700.0,0.04947689]
[1732269439610,0.050605,98709.0,98706.0,0.050606]
[1732269440009,0.050605,98709.0,98707.0,0.050606]
[1732269440313,0.050603,98713.0,98708.0,0.050606]
[1732269440611,0.050605,98710.0,98708.0,0.050606]
[1732269440818,0.16477935,98717.0,98705.0,0.050607]
[1732269441017,0.050608,98704.0,98700.0,0.050609]
[1732269441312,0.050608,98704.0,98701.0,0.050609]
[1732269441611,0.050608,98704.0,98698.0,0.083011]
[1732269441912,0.050608,98704.0,98698.0,0.050611]
[1732269442112,0.050608,98704.0,98697.0,0.050611]
[1732269442415,0.3608,98709.0,98697.0,0.050611]
[1732269442615,0.05061,98700.0,98697.0,0.050611]
[1732269442815,0.1678508,98707.0,98690.0,0.0653]
[1732269443010,0.3608,98709.0,98695.0,0.050612]
[1732269443011,0.1678508,98700.0,98695.0,0.050612]
[1732269443311,0.050609,98701.0,98695.0,0.050612]
[1732269443514,0.050609,98701.0,98690.0,0.0653]
[1732269443715,0.050609,98701.0,98696.0,0.050612]
[1732269444408,0.1678508,98705.0,98704.0,0.050608]
[1732269444815,0.050606,98708.0,98704.0,0.050608]
[1732269445719,0.050606,98707.0,98704.0,0.050608]
[1732269446016,0.38103654,98709.0,98704.0,0.050608]
[1732269446805,0.050606,98708.0,98704.0,0.050608]
[1732269447216,0.050606,98707.0,98704.0,0.050608]
[1732269448222,0.38103654,98709.0,98700.0,0.05061]
[1732269448423,0.050607,98706.0,98700.0,0.05061]
[1732269449312,0.050607,98706.0,98691.0,0.050614]
[1732269449520,0.050607,98706.0,98700.0,0.05061]
[1732269449913,0.050607,98706.0,98701.0,0.050609]
[1732269450409,0.10181379,98706.0,98701.0,0.050609]
[1732269451518,0.05120679,98706.0,98701.0,0.050609]
[1732269451715,0.38103654,98709.0,98701.0,0.050609]
[1732269451716,0.050607,98705.0,98701.0,0.050609]
[1732269452417,0.43076231,98709.0,98690.0,0.0653]
[1732269452615,0.43076231,98709.0,98694.0,0.050613]
[1732269452616,0.1678508,98700.0,98694.0,0.050613]
[1732269452916,0.1678508,98700.0,98690.0,0.0653]
[1732269454009,0.1678508,98700.0,98697.0,0.050611]
[1732269454209,0.1678508,98707.0,98697.0,0.050611]
[1732269454618,0.050607,98705.0,98697.0,0.050611]
[1732269454817,0.050607,98705.0,98690.0,0.0653]
[1732269455020,0.050607,98705.0,98698.0,0.050611]
[1732269455819,0.050607,98705.0,98700.0,0.05061]
[1732269457313,0.050607,98705.0,98690.0,0.0653]
[1732269457314,0.1678508,98707.0,98690.0,0.0653]
[1732269457617,0.43180232,98709.0,98690.0,0.0653]
[1732269457618,0.1678508,98700.0,98690.0,0.0653]
[1732269457817,0.1678508,98700.0,98696.0,0.050612]
[1732269458010,0.050609,98703.0,98696.0,0.050612]
[1732269459614,0.411412,98697.0,98691.0,0.050614]
[1732269459810,0.3608,98697.0,98687.0,0.36132]
[1732269460024,0.3608,98688.0,98682.0,0.050619]
[1732269460220,0.411416,98688.0,98682.0,0.050619]
[1732269460909,0.3608,98688.0,98684.0,0.050618]
[1732269462312,0.3608,98688.0,98678.0,0.3608]
[1732269462520,0.050617,98687.0,98679.0,0.050621]
[1732269462915,0.5296508,98688.0,98679.0,0.050621]
[1732269463117,0.050617,98686.0,98679.0,0.050621]
[1732269463319,0.050618,98685.0,98679.0,0.050621]
[1732269465437,0.050618,98685.0,98680.0,0.05062]
[1732269466723,0.10052532,98685.0,98680.0,0.05062]
[1732269467231,0.001,98688.0,98687.0,0.050617]
[1732269467531,0.0863254,98700.0,98699.0,0.05061]
[1732269467722,0.0863254,98700.0,98692.0,0.050614]
[1732269467723,0.02023774,98701.0,98700.0,0.05061]
[1732269473740,0.02023774,98701.0,98693.0,0.0651]
[1732269474035,0.02023774,98701.0,98697.0,0.050611]
[1732269474238,0.02023774,98701.0,98698.0,0.050611]
[1732269474532,0.07084774,98701.0,98693.0,0.0651]
[1732269474725,0.02023774,98701.0,98697.0,0.050611]
[1732269475524,0.02023774,98701.0,98698.0,0.050611]
[1732269476428,0.02023774,98701.0,98693.0,0.033]
[1732269476645,0.02023774,98701.0,98700.0,0.05061]
[1732269478935,0.02174248,98701.0,98700.0,0.05061]
[1732269483639,0.00150474,98701.0,98700.0,0.05061]
[1732269486437,0.00150474,98701.0,98700.0,0.13709]
[1732269490440,0.00150474,98701.0,98700.0,0.05061]
[1732269490943,0.00150474,98701.0,98686.0,0.0322]
[1732269491144,0.050613,98694.0,98693.0,0.050614]
[1732269491344,0.12952257,98700.0,98687.0,0.3608]
[1732269491546,0.12952257,98700.0,98685.0,0.11938]
[1732269491741,0.050613,98694.0,98693.0,0.050614]
[1732269492040,0.05211774,98694.0,98693.0,0.050614]
[1732269492236,0.00150474,98694.0,98693.0,0.050614]
[1732269493131,0.050614,98693.0,98689.0,0.050615]
[1732269493344,0.050615,98691.0,98687.0,0.050616]
[1732269493745,0.050614,98693.0,98689.0,0.050615]
[1732269493951,0.0312,98698.0,98689.0,0.050615]
[1732269494241,0.00150474,98691.0,98689.0,0.050615]
[1732269494447,0.00150474,98691.0,98685.0,0.36132]
[1732269494650,0.00150474,98691.0,98690.0,0.050615]
[1732269496351,0.050612,98697.0,98693.0,0.050613]
[1732269496651,0.0312,98698.0,98686.0,0.050617]
[1732269496944,0.09842257,98696.0,98685.0,0.3608]
[1732269497348,0.09842257,98696.0,98694.0,0.050613]
[1732269497650,0.02024106,98695.0,98694.0,0.050613]
[1732269501442,0.02024106,98695.0,98685.0,0.3608]
[1732269501654,0.08484973,98695.0,98685.0,0.3608]
[1732269501849,0.050614,98693.0,98688.0,0.050616]
[1732269502054,0.3608,98690.0,98680.0,0.00151988]
[1732269502257,0.49001734,98690.0,98681.0,0.050619]
[1732269502660,0.050616,98689.0,98681.0,0.050619]
[1732269502852,0.3608,98690.0,98680.0,0.00151988]
[1732269503155,0.411415,98690.0,98682.0,0.050619]
[1732269503345,0.50988442,98690.0,98682.0,0.050619]
[1732269503547,0.45926942,98690.0,98682.0,0.050619]
[1732269503850,0.050616,98688.0,98682.0,0.050619]
[1732269504448,0.51200265,98690.0,98682.0,0.050619]
[1732269504651,0.050617,98686.0,98680.0,0.00151988]
[1732269505048,0.51200265,98690.0,98674.0,0.3608]
[1732269505259,0.0304,98689.0,98675.0,0.050623]
[1732269506144,0.050619,98683.0,98676.0,0.050622]
[1732269506344,0.05062,98681.0,98676.0,0.050622]
[1732269508356,0.05062,98681.0,98674.0,0.3608]
[1732269508558,0.05062,98681.0,98677.0,0.050622]
[1732269511047,0.0314,98685.0,98681.0,0.05062]
[1732269511254,0.0314,98685.0,98678.0,0.050621]
[1732269511558,0.0314,98685.0,98669.0,0.48048]
[1732269511853,0.07086138,98682.0,98676.0,0.050622]
[1732269512061,0.02024238,98682.0,98669.0,0.481]
[1732269512259,0.02024238,98682.0,98669.0,0.48048]
[1732269512461,0.02024238,98682.0,98679.0,0.050621]
[1732269512661,0.02024238,98682.0,98669.0,0.48048]
[1732269512956,0.02024238,98682.0,98681.0,0.05062]
[1732269515962,0.07063186,98685.0,98681.0,0.05062]
[1732269518363,0.07063186,98685.0,98682.0,0.050619]
[1732269518753,0.02001386,98685.0,98684.0,0.050618]
[1732269522758,0.04025515,98685.0,98669.0,0.48288]
[1732269522960,0.04025515,98685.0,98684.0,0.050618]
[1732269525867,0.01748253,98685.0,98684.0,0.050618]
[1732269526070,0.03646989,98689.0,98684.0,0.050618]
[1732269526868,0.02024209,98685.0,98684.0,0.050618]
[1732269535476,0.3608,98690.0,98678.0,0.050621]
[1732269535682,0.3608,98690.0,98688.0,0.050616]
[1732269536185,0.32917155,98690.0,98688.0,0.050616]
[1732269541384,0.32917155,98690.0,98678.0,0.050621]
[1732269541579,0.32917155,98690.0,98689.0,0.050616]
[1732269541986,0.32917155,98690.0,98677.0,0.0302]
[1732269542181,0.06462937,98687.0,98685.0,0.050617]
[1732269542383,0.050616,98689.0,98685.0,0.050617]
[1732269542583,0.050616,98689.0,98677.0,0.0302]
[1732269542782,0.12925874,98687.0,98682.0,0.050619]
[1732269542989,0.050617,98687.0,98682.0,0.050619]
[1732269543191,0.050617,98687.0,98683.0,0.050618]
[1732269543782,0.32917155,98690.0,98677.0,0.0302]
[1732269543990,0.12925874,98687.0,98685.0,0.050617]
[1732269544175,0.32917155,98690.0,98685.0,0.050617]
[1732269546088,0.29754311,98690.0,98685.0,0.050617]
[1732269548188,0.29754311,98690.0,98687.0,0.050617]
[1732269550287,0.34815811,98690.0,98687.0,0.050617]
[1732269550684,0.050616,98689.0,98677.0,0.0302]
[1732269550888,0.12925874,98687.0,98684.0,0.050618]
[1732269551090,0.29754311,98690.0,98686.0,0.050617]
[1732269551779,0.29754311,98690.0,98684.0,0.050618]
[1732269551978,0.29754311,98690.0,98677.0,0.0302]
[1732269551979,0.24061191,98690.0,98678.0,0.050621]
[1732269552182,0.1292507,98688.0,98685.0,0.050618]
[1732269552381,0.29122691,98690.0,98686.0,0.050617]
[1732269553189,0.24061191,98690.0,98677.0,0.0302]
[1732269553494,0.1292507,98687.0,98684.0,0.050618]
[1732269553791,0.37746691,98690.0,98684.0,0.050618]
[1732269554183,0.37746691,98690.0,98685.0,0.050617]
[1732269554389,0.37746691,98690.0,98686.0,0.050617]
[1732269554584,0.050617,98686.0,98680.0,0.05062]
[1732269554787,0.050617,98686.0,98681.0,0.05062]
[1732269555292,0.050617,98686.0,98682.0,0.050619]
[1732269555492,0.050617,98687.0,98680.0,0.05062]
[1732269555689,0.050617,98686.0,98680.0,0.05062]
[1732269556185,0.45710261,98690.0,98680.0,0.05062]
[1732269556186,0.43432947,98690.0,98680.0,0.05062]
[1732269556495,0.050618,98685.0,98681.0,0.050619]
[1732269556798,0.050616,98689.0,98675.0,0.3608]
[1732269556980,0.1292507,98685.0,98684.0,0.050618]
[1732269557299,0.02024142,98687.0,98684.0,0.050618]
[1732269557594,0.02024142,98687.0,98682.0,0.050619]
[1732269557787,0.02024142,98687.0,98683.0,0.411418]
[1732269557988,0.02024142,98687.0,98686.0,0.050617]
[1732269559892,0.02163318,98687.0,98686.0,0.050617]
[1732269562387,0.02163318,98687.0,98675.0,0.411943]
[1732269562388,0.050619,98682.0,98675.0,0.36132]
[1732269562596,0.05062,98681.0,98675.0,0.3608]
[1732269562792,0.05062,98681.0,98675.0,0.411423]
[1732269562989,0.00139176,98678.0,98675.0,0.3608]
[1732269563192,0.00139176,98678.0,98676.0,0.050622]
[1732269564093,0.00139176,98677.0,98676.0,0.050622]
[1732269566201,0.02038111,98683.0,98676.0,0.050622]
[1732269567292,0.050621,98679.0,98675.0,0.3608]
[1732269567595,0.050618,98684.0,98675.0,0.411423]
[1732269568793,0.050619,98683.0,98675.0,0.411423]
[1732269569193,0.050621,98679.0,98675.0,0.3608]
[1732269569500,0.050621,98678.0,98675.0,0.3608]
[1732269569696,0.050623,98676.0,98668.0,0.08363323]
[1732269569892,0.3608,98681.0,98668.0,0.08363323]
[1732269569893,0.06461906,98678.0,98668.0,0.08363323]
[1732269570288,0.050624,98673.0,98668.0,0.05173323]
[1732269570498,0.050624,98673.0,98667.0,0.0311]
[1732269570701,0.06461906,98678.0,98667.0,0.0311]
[1732269571197,0.050624,98673.0,98667.0,0.0311]
[1732269571401,0.11524006,98678.0,98667.0,0.0311]
[1732269571800,0.08624,98679.0,98667.0,0.0311]
[1732269572000,0.06461906,98677.0,98674.0,0.050623]
[1732269572197,0.08624,98679.0,98674.0,0.050623]
[1732269572692,0.02024349,98677.0,98668.0,0.050626]
[1732269572897,0.02024349,98677.0,98669.0,0.050625]
[1732269573205,0.02024349,98677.0,98670.0,0.050625]
[1732269573404,0.02024349,98677.0,98667.0,0.08088885]
[1732269573597,0.02024349,98677.0,98673.0,0.050624]
[1732269574996,0.02024349,98677.0,98671.0,0.3608]
[1732269575197,0.02024349,98677.0,98675.0,0.050623]
[1732269575393,0.02024349,98677.0,98676.0,0.050622]
[1732269577502,0.07485235,98679.0,98677.0,0.050622]
[1732269578807,0.02024349,98678.0,98677.0,0.050622]
[1732269582005,0.02024349,98678.0,98672.0,0.050624]
[1732269582407,0.02024349,98678.0,98673.0,0.050624]
[1732269585419,0.02024349,98678.0,98674.0,0.050623]
[1732269587614,0.06346425,98679.0,98674.0,0.050623]
[1732269590415,0.02024439,98678.0,98674.0,0.050623]
[1732269594514,0.02024439,98678.0,98671.0,0.3608]
[1732269594709,0.050622,98677.0,98671.0,0.3608]
[1732269595017,0.050622,98677.0,98671.0,0.411425]
[1732269595214,0.02024439,98678.0,98671.0,0.411425]
[1732269596122,0.02024439,98678.0,98672.0,0.050624]
[1732269596316,0.02024439,98678.0,98673.0,0.050624]
[1732269597621,0.10269744,98679.0,98673.0,0.050624]
[1732269600437,0.050623,98675.0,98671.0,0.3608]
[1732269600614,0.0202446,98675.0,98671.0,0.3608]
[1732269600816,0.050623,98674.0,98671.0,0.3608]
[1732269601619,0.0202446,98675.0,98671.0,0.3608]
[1732269601815,0.05207644,98679.0,98671.0,0.3608]
[1732269602117,0.05207644,98679.0,98674.0,0.050623]
[1732269602317,0.05207644,98679.0,98671.0,0.3608]
[1732269602521,0.050622,98677.0,98671.0,0.3608]
[1732269602726,0.050622,98677.0,98671.0,0.411425]
[1732269604715,0.0202446,98675.0,98671.0,0.411425]
[1732269608518,0.0708676,98675.0,98671.0,0.3608]
[1732269608725,0.050623,98674.0,98671.0,0.3608]
[1732269609621,0.050624,98672.0,98671.0,0.3608]
[1732269609823,0.08596,98674.0,98663.0,0.00052]
[1732269610126,0.3608,98668.0,98652.0,0.0024]
[1732269610318,0.3608,98668.0,98644.0,0.0102]
[1732269610319,0.3608,98657.0,98645.0,0.0024]
[1732269610526,0.12923812,98655.0,98639.0,0.0945]
[1732269610829,0.050632,98657.0,98642.0,0.05064]
[1732269611029,0.12923812,98649.0,98642.0,0.05064]
[1732269611432,0.12923812,98649.0,98639.0,0.0945]
[1732269611433,0.12923812,98649.0,98643.0,0.050639]
[1732269611631,0.12923812,98649.0,98644.0,0.050639]
[1732269611830,0.050636,98650.0,98644.0,0.050639]
[1732269612026,0.08596,98650.0,98648.0,0.050637]
[1732269612225,0.08596,98650.0,98643.0,0.3608]
[1732269612421,0.08596,98650.0,98647.0,0.050637]
[1732269612634,0.08596,98650.0,98643.0,0.3608]
[1732269612832,0.05431966,98650.0,98643.0,0.3608]
[1732269613127,0.050638,98646.0,98643.0,0.3608]
[1732269613519,0.10495566,98650.0,98643.0,0.3608]
[1732269613835,0.050637,98648.0,98643.0,0.3608]
[1732269614026,0.05431966,98650.0,98643.0,0.3608]
[1732269614333,0.050638,98646.0,98643.0,0.3608]
[1732269614527,0.05431966,98650.0,98639.0,0.0642]
[1732269614722,0.050643,98636.0,98635.0,0.00118]
[1732269615227,0.3608,98644.0,98635.0,0.00118]
[1732269615630,0.05064,98641.0,98635.0,0.00118]
[1732269615828,0.050641,98640.0,98635.0,0.00118]
[1732269616133,0.3608,98644.0,98635.0,0.00118]
[1732269616628,0.050642,98638.0,98635.0,0.00118]
[1732269617530,0.050642,98637.0,98635.0,0.00118]
[1732269617739,0.050643,98636.0,98635.0,0.00118]
[1732269618730,0.411443,98636.0,98635.0,0.00118]
[1732269620630,0.3608,98636.0,98623.0,0.032]
[1732269620830,0.12923812,98633.0,98621.0,0.0307]
[1732269621024,0.12923812,98633.0,98614.0,0.085054]
[1732269621228,0.3608,98636.0,98614.0,0.085054]
[1732269621229,0.3608,98624.0,98614.0,0.082654]
[1732269621430,0.05065,98622.0,98614.0,0.082654]
[1732269621730,0.086,98623.0,98614.0,0.082654]
[1732269622429,0.050651,98621.0,98613.0,0.0301]
[1732269622842,0.086,98623.0,98613.0,0.0301]
[1732269623028,0.050651,98621.0,98613.0,0.080754]
[1732269624731,0.3608,98619.0,98613.0,0.080754]
[1732269625539,0.3608,98619.0,98614.0,0.050654]
[1732269625834,0.3608,98619.0,98618.0,0.050652]
[1732269626230,0.05042476,98623.0,98613.0,0.0301]
[1732269626231,0.05042476,98623.0,98614.0,0.3608]
[1732269626431,0.15061906,98625.0,98622.0,0.05065]
[1732269626626,0.086,98625.0,98615.0,0.050654]
[1732269626839,0.15061906,98625.0,98623.0,0.050649]
[1732269627043,0.086,98625.0,98623.0,0.050649]
[1732269627438,0.086,98625.0,98614.0,0.3608]
[1732269627942,0.13636535,98625.0,98614.0,0.3608]
[1732269628238,0.06461906,98624.0,98618.0,0.050652]
[1732269628440,0.3608,98622.0,98618.0,0.050652]
[1732269628836,0.3608,98622.0,98619.0,0.050651]
[1732269629034,0.3608,98622.0,98620.0,0.050651]
[1732269629234,0.3608,98622.0,98613.0,0.0301]
[1732269629235,0.3608,98622.0,98619.0,0.050651]
[1732269629937,0.3608,98622.0,98620.0,0.050651]
[1732269631044,0.33801063,98622.0,98620.0,0.050651]
[1732269632240,0.33801063,98622.0,98613.0,0.0301]
[1732269632639,0.33801063,98622.0,98618.0,0.050652]
[1732269632838,0.30635868,98622.0,98613.0,0.0301]
[1732269633241,0.30635868,98622.0,98618.0,0.050652]
[1732269633432,0.30635868,98622.0,98619.0,0.050651]
[1732269634249,0.30635868,98622.0,98613.0,0.0301]
[1732269634439,0.30635868,98622.0,98621.0,0.050651]
[1732269635342,0.24938646,98622.0,98621.0,0.050651]
[1732269635848,0.02025756,98624.0,98623.0,0.050649]
[1732269642347,0.02024481,98636.0,98635.0,0.050643]
[1732269642749,0.43647869,98642.0,98635.0,0.050643]
[1732269642950,0.43647869,98642.0,98641.0,0.05064]
[1732269642951,0.34939868,98642.0,98641.0,0.05064]
[1732269644254,0.39949838,98642.0,98641.0,0.05064]
[1732269645056,0.39949838,98642.0,98638.0,0.050642]
[1732269645252,0.419755,98642.0,98638.0,0.050642]
[1732269645467,0.419755,98642.0,98632.0,0.0307]
[1732269645655,0.61361218,98642.0,98631.0,0.3608]
[1732269645962,0.04021416,98641.0,98624.0,0.0321]
[1732269646257,0.12923812,98636.0,98621.0,0.0024]
[1732269646448,0.12923812,98631.0,98620.0,0.00052]
[1732269646760,0.411448,98627.0,98619.0,0.0303]
[1732269646958,0.3608,98626.0,98619.0,0.0303]
[1732269647552,0.050646,98629.0,98622.0,0.05065]
[1732269648762,0.08596,98628.0,98622.0,0.05065]
[1732269649258,0.05179583,98629.0,98619.0,0.0303]
[1732269649458,0.14924808,98632.0,98619.0,0.0303]
[1732269649760,0.08596,98628.0,98622.0,0.05065]
[1732269650252,0.08596,98628.0,98619.0,0.0303]
[1732269650454,0.08596,98628.0,98624.0,0.050649]
[1732269651163,0.08596,98628.0,98620.0,0.050651]
[1732269651367,0.08596,98628.0,98619.0,0.0303]
[1732269651747,0.08596,98628.0,98623.0,0.050649]
[1732269652454,0.08596,98628.0,98619.0,0.0303]
[1732269652651,0.3608,98626.0,98619.0,0.0303]
[1732269652955,0.32914837,98626.0,98619.0,0.080951]
[1732269653161,0.050647,98627.0,98619.0,0.0303]
[1732269653365,0.3608,98625.0,98619.0,0.0303]
[1732269654064,0.3608,98625.0,98619.0,0.080951]
[1732269655252,0.411449,98625.0,98619.0,0.080951]
[1732269655464,0.35447602,98625.0,98619.0,0.080951]
[1732269655657,0.37473105,98625.0,98619.0,0.080951]
[1732269656761,0.32408205,98625.0,98610.0,0.0024]
[1732269657063,0.050655,98613.0,98606.0,0.0302]
[1732269657360,0.03406134,98618.0,98606.0,0.0302]
[1732269657668,0.050655,98612.0,98606.0,0.0302]
[1732269657862,0.050655,98612.0,98606.0,0.080858]
[1732269658259,1.50112001,98617.0,98606.0,0.080858]
[1732269658455,1.5,98617.0,98608.0,0.050657]
[1732269658661,0.050654,98615.0,98608.0,0.050657]
[1732269659163,1.55283617,98617.0,98606.0,0.0302]
[1732269659465,0.050655,98613.0,98606.0,0.0302]
[1732269659660,0.050655,98613.0,98606.0,0.080858]
[1732269660458,1.55283617,98617.0,98607.0,0.050658]
[1732269660655,1.55171616,98617.0,98607.0,0.050658]
[1732269660857,0.050654,98614.0,98607.0,0.050658]
[1732269661254,0.050655,98613.0,98607.0,0.050658]
[1732269662663,0.136615,98613.0,98607.0,0.050658]
[1732269662872,0.08596,98613.0,98607.0,0.050658]
[1732269663468,0.08596,98613.0,98601.0,0.0332]
[1732269663769,0.08596,98613.0,98610.0,0.050656]
[1732269663972,0.08596,98613.0,98601.0,0.0332]
[1732269664172,0.136615,98613.0,98605.0,0.050659]
[1732269664559,0.08596,98613.0,98608.0,0.050657]
[1732269664772,0.08596,98613.0,98601.0,0.0332]
[1732269664962,0.08596,98613.0,98607.0,0.050658]
[1732269665163,0.08596,98613.0,98612.0,0.050655]
[1732269665473,0.08596,98613.0,98608.0,0.050657]
[1732269666569,0.02898334,98613.0,98601.0,0.0332]
[1732269666770,0.19720616,98611.0,98601.0,0.0332]
[1732269666969,0.050661,98601.0,98600.0,0.1]
[1732269671670,0.136581,98601.0,98600.0,0.1]
[1732269672165,0.18818357,98601.0,98600.0,0.1]
[1732269672873,0.13752257,98601.0,98600.0,0.1]
[1732269673764,0.18818357,98601.0,98600.0,0.1]
[1732269675068,0.13752257,98601.0,98600.0,0.150661]
[1732269675278,0.08592,98601.0,98600.0,0.150661]
[1732269675663,0.3608,98607.0,98600.0,0.1]
[1732269675860,0.44672,98607.0,98600.0,0.1]
[1732269676268,0.49625125,98607.0,98600.0,0.1]
[1732269676461,0.04953125,98607.0,98600.0,0.1]
[1732269676666,0.09860308,98611.0,98600.0,0.1]
[1732269676868,0.02025756,98613.0,98612.0,0.050655]
[1732269677068,0.09860308,98622.0,98611.0,0.050656]
[1732269677263,0.09860308,98622.0,98619.0,0.050651]
[1732269677462,0.0024,98633.0,98618.0,0.3608]
[1732269677463,0.02026232,98620.0,98618.0,0.3608]
[1732269677969,0.02026232,98620.0,98619.0,0.050652]
[1732269678667,0.20115608,98629.0,98619.0,0.050652]
[1732269678668,0.051907,98629.0,98628.0,0.050647]
[1732269678862,0.12324955,98646.0,98643.0,0.050639]
[1732269678863,0.0024,98644.0,98643.0,0.050639]
[1732269679173,0.12324955,98646.0,98645.0,0.050638]
[1732269679470,0.17460947,98646.0,98645.0,0.050638]
[1732269681378,0.050638,98645.0,98644.0,0.3608]
[1732269682965,0.3608,98645.0,98630.0,0.0312]